Workbook

Sheet Budget 23-24
A2: Income | C2: BUDGET 23 - 24 | H2: RESERVES @ 30/11/22
A3: 1000 | B3: Grants received | C3: 20000 | H3: General Fund | L3: =311083+48260-90000 -> 269343
A4: 1001 | B4: Miscellaneous Income | C4: 0 | H4: Earmarked reserves | L4: 354139
A5: 1002 | B5: Christmas Lights Income | C5: 0 | I5: Election Fund | M5: 4000
A6: 1003 | B6: Donations received | C6: 0 | I6: Staff Sickness | M6: 2500
A7: 1004 | B7: CAP Salary | C7: =9931/12*5 -> 4137.916667 | I7: Bells Contingency | M7: 40000
A8: 1010 | B8: Room Hire | C8: 500 | I8: Environment | M8: 4139
A9: 1020 | B9: KGV Hire | C9: 1500 | I9: Bells Boardwalk | M9: 13500
A10: 1050 | B10: Burial Income | C10: 0 | I10: Capital purchase | M10: 200000
A11: 1080 | B11: Mayor's Charity | C11: 0 | I11: Clock Tower | M11: 75000
A12: 1081 | B12: Bells Field Income | C12: 0 | I12: Cemetery expansion | M12: 15000
A13: 1100 | B13: Investment Revaluation | C13: 0 | L13: =SUM(L3:L12) -> 623482
A14: 1176 | B14: Precept Received | C14: 465000
A15: 1190 | B15: Interest Received | C15: 0 | H15: Predicted excess Income / Expenditure | L15: =SUM(C18-C98) -> -185872.0833
A16: 1191 | B16: TIC Income | C16: 4500
A17: 1200 | B17: NDP Locality Grant | C17: 10000 | H17: TOTAL Predicted Reserves at 1/4/23 | L17: =SUM(L13+L15) -> 437609.9167
C18: =SUM(C3:C17) -> 505637.9167
A20: Expenditure | C20: BUDGET 23 - 24
A21: 4000 | B21: Staff Salaries | C21: 109000
A22: 4001 | B22: Employers N I | C22: 6650
A23: 4002 | B23: Employers Pension Cont. | C23: 15850
A24: 4004 | B24: Staff Sickness Reserve | C24: 500
A25: 4008 | B25: Training and Conferences | C25: 3000
A26: 4009 | B26: Office Maintenance | C26: 1000
A27: 4010 | B27: Office Improvements | C27: 500 | H27: CH | I27: 1000 | J27: =I27/37*32 -> 864.8648649
A28: 4011 | B28: Office Rent | C28: 12500 | H28: LS | I28: 2000 | J28: =I28/37*34.75 -> 1878.378378
A29: 4012 | B29: Youth Building | C29: 5000
A30: 4013 | B30: Office Business Rates | C30: 4650 | H30: EB | I30: 500 | J30: =I30/37*12 -> 162.1621622
A31: 4014 | B31: Office Household Supplies | C31: 2200 | H31: LJ | I31: 500 | J31: =I31/37*15 -> 202.7027027
A32: 4015 | B32: Office Utilities | C32: 8000 | H32: JP | I32: 500 | J32: =(I32/37*15)/12*5 -> 84.45945946
A33: 4016 | B33: Window Cleaning | C33: 460
A34: 4017 | B34: Website | C34: 500
A35: 4020 | B35: Refreshments and Entertaining | C35: 200
A36: 4021 | B36: Telephone & Broadband | C36: 2500
A37: 4022 | B37: Post | C37: 200
A38: 4023 | B38: Photocopying | C38: 2700
A39: 4024 | B39: Subscriptions | C39: 3700
A40: 4025 | B40: Insurance | C40: 10500
A41: 4026 | B41: Stationery | C41: 1700
A42: 4030 | B42: Recruitment Advertising | C42: 250
A43: 4031 | B43: General Advertising | C43: 600
A44: 4032 | B44: Statutory Advertising | C44: 250
A45: 4033 | B45: Chairman's Allowance | C45: 200
A46: 4034 | B46: Election Charges | C46: 11000
A47: 4035 | B47: Travelling Expenses | C47: 150
A48: 4037 | B48: Council Newsletter | C48: 1000
A49: 4038 | B49: Town Events Leaflet | C49: 1600
A50: 4039 | B50: NDP | C50: 10000
A51: 4050 | B51: Bank Charges | C51: 100
A52: 4057 | B52: Audit | C52: 1500
A53: 4058 | B53: Professional Fees | C53: 28000
A54: 4070 | B54: Civic Expenditure | C54: 1000
A55: 4075 | B55: Mayor's Charity | C55: 0
A56: 4081 | B56: No 4 Lords Hill Rent | C56: 8500
A57: 4082 | B57: No 4 Lords Hill Utilities | C57: 2200
A58: 4083 | B58: No 4 Business Rates | C58: 1200
A59: 4084 | B59: Emergency Plan | C59: 250
A60: 4100 | B60: CCTV Maintenance & Purchase | C60: 6100
A61: 4101 | B61: No 4 Improvements | C61: 250
A62: 4102 | B62: SLA Grant CAB | C62: 5000
A63: 4103 | B63: Grants | C63: 10000
A64: 4104 | B64: Twinning Project | C64: 7000
A65: 4107 | B65: Promotion Video | C65: 500
A66: 4110 | B66: Town Guide | C66: 1000
A67: 4125 | B67: Section 137 Payments | C67: 0
A68: 4149 | B68: Street Furniture Purchase | C68: 1000
A69: 4151 | B69: Office Equipment | C69: 3000
A70: 4153 | B70: Street Furniture Maintenance | C70: 500
A71: 4175 | B71: Clock Tower Maintenance | C71: 85000
A72: 4176 | B72: Clock Tower Utilities | C72: 2800
A73: 4200 | B73: Bells Field Improvements | C73: 25000
A74: 4201 | B74: Bells Field Maintenance | C74: 42000
A75: 4210 | B75: KGV Utilities | C75: 2000
A76: 4211 | B76: KGV Maintenance | C76: 5000
A77: 4212 | B77: KGV Improvements | C77: 10000
A78: 4226 | B78: Cemetery Utilities | C78: 2200
A79: 4228 | B79: Cemetery Grave Expenditure | C79: 4000
A80: 4230 | B80: Cemetery Maintenance | C80: 10000
A81: 4231 | B81: Cemetery Improvements | C81: 20000
A82: 4249 | B82: TIC Expenditure | C82: 2000
A83: 4250 | B83: TIC Goods | C83: 2500
A84: 4251 | B84: Town Centre Flower Contract | C84: 8500
A85: 4252 | B85: Events | C85: 78000
A86: 4253 | B86: Town Centre Maintenance | C86: 1500
A87: 4258 | B87: Town Centre Improvements | C87: 25000
A88: 4259 | B88: Environment | C88: 10000
A89: 4274 | B89: Parish Maintenance | C89: 15500
A90: 4275 | B90: Bus Shelter Maintenance | C90: 7250
A91: 4276 | B91: Bus Shelter Purchase | C91: 7000
A92: 4278 | B92: Covid-19 Fund | C92: 0
A93: 4279 | B93: Parish Improvements | C93: 5000
A94: 4280 | B94: Grass Cutting Community Areas | C94: 7800
A95: 4281 | B95: Play Area Inspection and Maintenance | C95: 7500
A96: 4282 | B96: Promotion Items | C96: 500
A97: 4305 | B97: SLA Youth Association | C97: 12000
C98: =SUM(C21:C97) -> 691510

Sheet Precept 23-24
A1: Precept
A3: 2022/23 | B3: Actual | C3: 450000 | E3: Yr on Yr % Variance exc. Taxbase | G3: With Taxbase | K3: =SUM(C4-C3) -> 15000
A4: 2023/24 | B4: Proposal | C4: 465000 | E4: =SUM(K3/C3) -> 0.03333333333 | F4: =SUM((C4/2988.95)/A9)*100 -> 100.7321523 | G4: =SUM(F4-100) -> 0.7321523166 | I4: Total budget - income and £185,872 from reserves*
I5: *or consideration of a Public Works Loan
A7: 2022/23 | B7: 2023/24 | E7: Examples: | G7: % | I7: Total Budgeted Expenditure - £691,510 | L7: 855212
A8: 2913.71 | B8: 2988.95 | C8: Taxbase | E8: £425K | F8: =SUM((425000/2988.95)/154.44)*100 -> 92.06837692 | G8: =SUM(F8-100) -> -7.931623082 | I8: Budgeted income - £40,638 plus precept of £465,000 | L8: 10638 | M8: =L7-(L8+L9) -> 379574
A9: 154.4422746 | B9: =SUM(C4/2988.95) -> 155.5730273 | C9: D Band | E9: £430K | F9: =SUM((430000/2988.95)/154.44)*100 -> 93.15153429 | G9: -6.848465707 | I9: Shortfall - £185,872 | L9: 465000
E10: £435K | F10: =SUM((435000/2988.95)/154.44)*100 -> 94.23469167 | G10: -5.765308331
B11: =SUM(B9-A9)/52 -> 0.02174524407 | C11: per week | E11: £440K | F11: =SUM((440000/2988.95)/154.44)*100 -> 95.31784904 | G11: -4.682150956 | I11: At 3.33% rise cost per week is £0.02- 2p/week
E12: £445K | F12: =SUM((445000/2988.95)/154.44)*100 -> 96.40100642 | G12: -3.59899358
E13: £450K | F13: =SUM((450000/2988.95)/154.44)*100 -> 97.4841638 | G13: -2.515836205
E14: £455K | F14: =SUM((455000/2988.95)/154.44)*100 -> 98.56732117 | G14: =SUM(F14-100) -> -1.432678829
E15: £460K | F15: =SUM((460000/2988.95)/154.44)*100 -> 99.65047855 | G15: =SUM(F15-100) -> -0.3495214539
E18: 0% = £450,000
